Workbook

Sheet 심의안건
A1: 제1회 예천군 보조금심의위원회 대상자선정심의 조서
K2: (단위 : 천원)
A3: 부서명 | B3: 보 조 사 업 자 | C3: 보 조 사 업 명 | D3: 과목명 | E3: 사 업 내 용 | F3: 2016년 지원액 | G3: 계 | H3: 보조금 | I3: 자부담 | J3: 1차(해당부서) | K3: 2차(예산부서) | L3: 3차(위원회)
A4: 계 | C4: =SUBTOTAL(103,C5:C43)&"건" -> 34건 | F4: =SUBTOTAL(9,F5:F43) -> 1,478,588 | G4: 2,849,839 | H4: 1,896,399 | I4: 953,440 | J4: 1,896,399 | K4: 1,896,399 | L4: 1,896,399
A5: 주민복지과 소계 | C5: =SUBTOTAL(103,C6:C12)&"건" -> 7건 | F5: =SUBTOTAL(9,F6:F12) -> 415,740 | G5: =SUBTOTAL(9,G6:G12) -> 571,685 | H5: 567,185 | I5: =SUBTOTAL(9,I6:I12) -> 4,500 | J5: 567,185 | K5: =SUBTOTAL(9,K6:K12) -> 567,185 | L5: =SUBTOTAL(9,L6:L12) -> 567,185
A6: 주민복지과 | B6: 예천군 신규등록노인회 | C6: 경로당 신축 | D6: 민간자본사업보조 | E6: 60,000천원*3개소 | F6: 60,000 | G6: =SUM(H6:I6) -> 180,000 | H6: 180,000 | J6: 180,000 | K6: =J6 -> 180,000 | L6: =K6 -> 180,000
A7: 주민복지과 | B7: 예천군 산하 노인회(25개소) | C7: 경로당 보수 | D7: 민간자본사업보조 | E7: [경로당 보수 및 리모델링] 지붕덧씌우기 화장실신축 주방확장 싱크대교체 마루바닥보수 등 | F7: 260,000 | G7: =SUM(H7:I7) -> 250,000 | H7: 250,000 | J7: 250,000 | K7: =J7 -> 250,000 | L7: =K7 -> 250,000
A8: 주민복지과 | B8: 예천군 산하 노인회(100개소) | C8: 경로당 안전관리 CCTV 설치 | D8: 사회복지사업보조 | E8: CCTV 설치 | F8: 14,740 | G8: 37,185 | H8: 37,185 | J8: 37,185 | K8: 37,185 | L8: 37,185
A9: 주민복지과 | B9: 예천군 효자로 89 (예천읍체육회 황재도 외 11개 단체) (대상자 내역 별지) | C9: 읍면 어버이날행사 지원 | D9: 사회복지사업보조 | E9: 18,000천원*1식 | F9: 18,000 | G9: 18,000 | H9: 18,000 | J9: 18,000 | K9: 18,000 | L9: 18,000
A10: 주민복지과 | B10: 예천군 예천읍 효자로 89 (예천읍새마을부녀회 김춘연 외 11개 단체) (대상자 내역 별지) | C10: 2017년 읍면 할매할배의 날 행사 | D10: 민간경상사업보조 | E10: 60,000천원*1식 | F10: 41,000 | G10: 62,500 | H10: 60,000 | I10: 2,500 | J10: 60,000 | K10: 60,000 | L10: 60,000
A11: 주민복지과 | B11: 예천군여성단체협의회 | C11: 여성권익증진사업 | D11: 민간경상사업보조 | E11: 여성역량강화교육 : 3,500천원 무료찻집운영 : 1,500천원 어린이날행사지원 : 1,000천원 농촌일손돕기 : 600천원 김장행사 : 2,000천원 아동청소년위문 등 : 1,000천원 기타 소모품 : 1,400천원 | F11: 10,000 | G11: 11,000 | H11: 10,000 | I11: 1,000 | J11: 10,000 | K11: 10,000 | L11: 10,000
A12: 주민복지과 | B12: 예천군여성단체협의회 | C12: 여성대회 개최 지원 | D12: 민간행사사업보조 | E12: 이벤트 : 2,500천원 중식 : 4,200천원 공연 및 특강 : 1,500천원 현수막 : 600천원 장기자랑 시상금 등 : 2,500천원 기타 소모품 : 1,700천원 | F12: 12,000 | G12: 13,000 | H12: 12,000 | I12: 1,000 | J12: 12,000 | K12: 12,000 | L12: 12,000
A13: 종합민원과 | C13: =SUBTOTAL(103,C14:C19)&"건" -> 6건 | F13: =SUBTOTAL(9,F14:F19) -> 84,000 | G13: 114,000 | H13: 114,000 | I13: 0 | J13: 114,000 | K13: 114,000 | L13: 114,000
A14: 종합민원과 | B14: 사)한국외식업중앙회예천군지부 | C14: 향토음식아카데미운영 | D14: 민간경상사업보조 | E14: [심화반] 강사료 :9,024천원 조리교육 재료비 : 4,050천원 간식비 및 교재비 : 1,890천원 맛집기행 : 1,500천원 품평회 및 수료식 등 : 2,260천원 결과보고서 : 500천원, 사전조사비 등 : 776천원 [집중육성반] 강사료 :9,024천원 조리교육 재료비 : 4,050천원 간식비 및 교재비 : 1,890천원 맛집기행 : 1,500천원 품평회 및 수료식 : 1.960천원 우수 실천업소 인센티브 : 10,000천원 결과보고서 : 800천원, 사전조사비 등 : 776천원 | F14: 40,000 | G14: 50,000 | H14: 50,000 | J14: 50,000 | K14: =J14 -> 50,000 | L14: =K14 -> 50,000
A15: 종합민원과 | B15: 사)한국외식업중앙회예천군지부 | C15: 식중독예방 및 음식문화개선사업 | D15: 민간경상사업보조 | E15: 식단전시 및 시식회 : 6,000천원 남은음식 싸주는 용기구입 : 6,600천원 앞치마, 위생모 구입 : 3,000천원 식중독예방 홍보물 : 3,000천원 캠페인, 세미나 등 : 1,400천원 | F15: 20,000 | G15: 20,000 | H15: 20,000 | J15: 20,000 | K15: =J15 -> 20,000 | L15: =K15 -> 20,000
A16: 종합민원과 | B16: 사)한국외식업중앙회예천군지부 | C16: 외식업소 선진외식문화체험 지원 사업 | D16: 민간경상사업보조 | E16: 차량임차비 : 6,300천원 숙박비 : 3,000천원 식비및체험비 : 9,600천원 기타경비 : 1,100천원 | G16: 20,000 | H16: 20,000 | J16: 20,000 | K16: 20,000 | L16: 20,000
A17: 종합민원과 | B17: 사)한국외식업중앙회예천군지부 | C17: 위생업소 현장방문 친절교육 지원사업 | D17: 민간경상사업보조 | E17: 친절서비스교육 : 7,500천원 경영진단비 : 2,500천원 책자, 강사비 및 기타경비 : 5,000천원 | F17: 15,000 | G17: 15,000 | H17: 15,000 | J17: 15,000 | K17: 15,000 | L17: 15,000
A18: 종합민원과 | B18: 사)한국외식업중앙회예천군지부 | C18: 식중독예방진단 서비스사업 참여업체 위생용품 지원 사업 | D18: 민간경상사업보조 | E18: 위생용품구입지원 : 2,500천원 | F18: 2,500 | G18: 2,500 | H18: 2,500 | J18: 2,500 | K18: 2,500 | L18: 2,500
A19: 종합민원과 | B19: 사)한국외식업중앙회예천군지부 (대상자내역 별지) | C19: 손씻는시설설치지원사업 | D19: 민간자본사업보조 | E19: 손씻는시설설치지원 1,300천원*5개소 | F19: 6,500 | G19: 6,500 | H19: 6,500 | J19: 6,500 | K19: 6,500 | L19: 6,500
A20: 문화관광과 소계 | C20: =SUBTOTAL(103,C21:C22)&"건" -> 2건 | F20: =SUBTOTAL(9,F21:F22) -> 64,000 | G20: =SUBTOTAL(9,G21:G22) -> 64,000 | H20: 64,000 | I20: 0 | J20: 64,000 | K20: 64,000 | L20: 64,000
A21: 문화관광과 | B21: 한국예총예천지회 | C21: 청소년수련관 갤러리 전시 지원 | D21: 민간경상사업보조 | E21: 전시지원 : 8,000천원 작품운송, 설치 및 철거비 : 2,000천원 전시장 해설비 : 12,000천원 기타 수선비 : 2,000천원 | F21: 24,000 | G21: 24,000 | H21: 24,000 | J21: 24,000 | K21: =J21 -> 24,000 | L21: =K21 -> 24,000
A22: 문화관광과 | B22: 예천문화원 | C22: 삼강주막 상설공연사업 | D22: 민간경상사업보조 | E22: 지역무형문화재 및 전통민속 공연 : 14,000천원 외부 초청공연 : 1,000천원 예술단체 공연 : 19,500천원 관람객 한마당 행사 : 500천원 공연음향장비 임차료 : 1,500천원 홍보 및 기타경비 : 3,500천원 | F22: 40,000 | G22: 40,000 | H22: 40,000 | J22: 40,000 | K22: =J22 -> 40,000 | L22: =K22 -> 40,000
A23: 농정과 소계 | C23: =SUBTOTAL(103,C24:C30)&"건" -> 7건 | F23: =SUBTOTAL(9,F24:F30) -> 689,848 | G23: =SUBTOTAL(9,G24:G30) -> 1,617,464 | H23: 849,300 | I23: 768,164 | J23: 849,300 | K23: 849,300 | L23: 849,300
A24: 농정과 | B24: 대구경북능금농협 예천경제사업장 | C24: 사과 선별기 지원사업 | D24: 민간자본사업보조 | E24: 130,000천원*1식*45% | G24: 130,000 | H24: 58,500 | I24: 71,500 | J24: 58,500 | K24: =J24 -> 58,500 | L24: =K24 -> 58,500
A25: 농정과 | B25: 대구경북능금농협 예천경제사업장 이정욱 외 4명 (대상자 내역 별지) | C25: 신선농산물 수출물류비 지원 | D25: 민간경상사업보조 | E25: 수출농가 : 200,000kg*976원*15% 수출업체 : 200,000kg*976원*10% | F25: 46,848 | G25: 48,800 | H25: 48,800 | J25: 48,800 | K25: =J25 -> 48,800 | L25: =K25 -> 48,800
A26: 농정과 | B26: 효자면 왕곡길 107 김시겸 외 9명 (대상자 내역 별지) | C26: 귀농정착지원 | D26: 민간자본사업보조 | E26: 5,000,000원 * 10농가 * 80% | F26: 40,000 | G26: 52,500 | H26: 40,000 | I26: 12,500 | J26: 40,000 | K26: 40,000 | L26: 40,000
A27: 농정과 | B27: 예천읍 갈구2길 263-30 우갑기 외 28명 (대상자 내역 별지) | C27: 귀농인 영농기반 지원 | D27: 민간자본사업보조 | E27: 5,000,000원 * 29농가 * 80% | F27: 80,000 | G27: 220,164 | H27: 116,000 | I27: 104,164 | J27: 116,000 | K27: 116,000 | L27: 116,000
A28: 농정과 | B28: 효자면 왕곡길 107 김시겸 외 2명 (대상자 내역 별지) | C28: 귀농인 빈집수리비 지원 | D28: 민간자본사업보조 | E28: 5,000,000원 * 2농가 * 80% | F28: 40,000 | G28: 10,000 | H28: 8,000 | I28: 2,000 | J28: 8,000 | K28: 8,000 | L28: 8,000
A29: 농정과 | B29: 예천읍 왕신오이작목반 외 18반 (대상자 내역 별지) | C29: 원예특용작물 토양개량제 지원 | D29: 민간자본사업보조 | E29: 2,000,000원*200ha*50% | G29: 400,000 | H29: 200,000 | I29: 200,000 | J29: 200,000 | K29: 200,000 | L29: 200,000
A30: 농정과 | B30: 용문면 성현길 88 한위석 외 17명 (대상자 내역 별지) | C30: 소규모 벼 육묘공장 지원사업 | D30: 민간자본사업보조 | E30: 42,000,000원 * 18동 * 50% | F30: 483,000 | G30: =SUM(H30:I30) -> 756,000 | H30: 378,000 | I30: 378,000 | J30: 378,000 | K30: 378,000 | L30: 378,000
A31: 산림축산과 소계 | C31: =SUBTOTAL(103,C32:C43)&"건" -> 12건 | F31: =SUBTOTAL(9,F32:F43) -> 225,000 | G31: =SUBTOTAL(9,G32:G43) -> 482,690 | H31: 301,914 | I31: 180,776 | J31: 301,914 | K31: 301,914 | L31: 301,914
A32: 산림축산과 | B32: 예천읍 구남골길 이만현 외 11명 (대상자 내역 별지) | C32: 염소 사료급이기 지원사업 | D32: 민간자본사업보조 | E32: 200,000원*43개*60% | F32: 8,400 | G32: =SUM(H32:I32) -> 8,600 | H32: 5,160 | I32: 3,440 | J32: =H32 -> 5,160 | K32: =J32 -> 5,160 | L32: =K32 -> 5,160
A33: 산림축산과 | B33: 용궁면 실음실길 김헌태 외 9명 (대상자 내역 별지) | C33: 염소 자동급수기 지원사업 | D33: 민간자본사업보조 | E33: 250,000원*31대*60% | F33: 4,200 | G33: =SUM(H33:I33) -> 7,750 | H33: 4,650 | I33: 3,100 | J33: =H33 -> 4,650 | K33: =J33 -> 4,650 | L33: =K33 -> 4,650
A34: 산림축산과 | B34: 호명면 종산리 이형석 외 1명 (대상자 내역 별지) | C34: 계란 난좌 지원사업 | D34: 민간자본사업보조 | E34: 80원*40,000장*60% | F34: 960 | G34: 3,200 | H34: 1,920 | I34: 1,280 | J34: 1,920 | K34: 1,920 | L34: 1,920
A35: 산림축산과 | B35: 개포면 죽전길 강석오 외 8명 (대상자 내역 별지) | C35: 육계사 깔짚 지원사업 | D35: 민간자본사업보조 | E35: 5,000원*7,900포*60% | F35: 24,000 | G35: 39,500 | H35: 23,700 | I35: 15,800 | J35: 23,700 | K35: 23,700 | L35: 23,700
A36: 산림축산과 | B36: 예천읍 남읍내길 김손정 외 58명 (대상자 내역 별지) | C36: 축사 환기시설(송풍기) 지원사업 | D36: 민간자본사업보조 | E36: 300,000원*80대*60% | F36: 16,200 | G36: 24,000 | H36: 14,400 | I36: 9,600 | J36: 14,400 | K36: 14,400 | L36: 14,400
A37: 산림축산과 | B37: 예천읍 충효로 김경동 외 7명 (대상자 내역 별지) | C37: 낙농가 유질개선제 지원사업 | D37: 민간자본사업보조 | E37: 30,000원*700포*50% | F37: 10,500 | G37: 21,000 | H37: 10,500 | I37: 10,500 | J37: 10,500 | K37: 10,500 | L37: 10,500
A38: 산림축산과 | B38: 예천읍 양촌길 권재우 외 87명 (대상자 내역 별지) | C38: 한우농가 개체잠금장치 지원사업 | D38: 민간자본사업보조 | E38: 50,000원*1,200두*50% | F38: 30,000 | G38: 60,000 | H38: 30,000 | I38: 30,000 | J38: 30,000 | K38: 30,000 | L38: 30,000
A39: 산림축산과 | B39: 예천읍 대심1길 김찬동 외 210명 (대상자 내역 별지) | C39: 한우 미네랄블럭 지원사업 | D39: 민간자본사업보조 | E39: 15,000원*2,700개*60% | G39: 40,500 | H39: 24,300 | I39: 16,200 | J39: 24,300 | K39: 24,300 | L39: 24,300
A40: 산림축산과 | B40: 예천읍 시장로 김홍익 외 58명 (대상자 내역 별지) | C40: 한우농가 송아지 절식마스크 지원사업 | D40: 민간자본사업보조 | E40: 7,000원*1,220개*60% | G40: 8,540 | H40: 5,124 | I40: 3,416 | J40: 5,124 | K40: 5,124 | L40: 5,124
A41: 산림축산과 | B41: 은풍면 부용봉길 정태원 외 1명 (대상자 내역 별지) | C41: 젖소 더위방지용 대형선풍기 지원 | D41: 민간자본사업보조 | E41: 3,000,000원*2대*50% | G41: 6,000 | H41: 3,000 | I41: 3,000 | J41: 3,000 | K41: 3,000 | L41: 3,000
A42: 산림축산과 | B42: 예천읍 중앙로 안승영 외 253명 (대상자 내역 별지) | C42: 면역강화용 사료첨가제 지원 | D42: 민간자본사업보조 | E42: 30,000원*7,000포*70% | F42: 102,900 | G42: 210,000 | H42: 147,000 | I42: 63,000 | J42: 147,000 | K42: 147,000 | L42: 147,000
A43: 산림축산과 | B43: 지보면 마산리 노경숙 외 112명 (대상자 내역 별지) | C43: 꿀벌화분 지원사업 | D43: 민간자본사업보조 | E43: 8,000원*6,700kg*60% | F43: 27,840 | G43: 53,600 | H43: 32,160 | I43: 21,440 | J43: 32,160 | K43: 32,160 | L43: 32,160

Sheet 대상자별지내역
A1: 제1회 예천군 보조금심의위원회 대상자내역 별지 조서
L2: (단위 : 천원)
A3: 부서명 | B3: 보 조 사 업 자 | D3: 보 조 사 업 명 | E3: 과목명 | F3: 사 업 내 용 | G3: 2016년 지원액 | H3: 계 | I3: 보조금 | J3: 자부담 | K3: 1차(해당부서) | L3: 2차(예산부서) | M3: 3차(위원회)
B4: 주소 | C4: 성명
A5: 소계 | C5: =SUBTOTAL(103,C6:C29)&"단체" -> 24단체 | G5: =SUBTOTAL(9,G6:G29) -> 59,000 | H5: =SUBTOTAL(9,H6:H29) -> 80,500 | I5: 78,000 | J5: 2,500 | K5: 78,000 | L5: 78,000 | M5: 78,000
A6: 주민복지과 | B6: 예천군 효자로 89 | C6: 황재도 | D6: 읍면어버이날 행사지원 | E6: 사회복지사업보조 | F6: 4,500천원*1식 | G6: 4,500 | H6: =SUM(I6:J6) -> 4,500 | I6: 4,500 | K6: 4,500 | L6: =K6 -> 4,500 | M6: =L6 -> 4,500
A7: 주민복지과 | B7: 예천군 용문면 금당실길 54 | C7: 윤순옥 | D7: 읍면어버이날 행사지원 | E7: 사회복지사업보조 | F7: 1,370천원*1식 | G7: 1,370 | H7: =SUM(I7:J7) -> 1,370 | I7: 1,370 | K7: 1,370 | L7: =K7 -> 1,370 | M7: =L7 -> 1,370
A8: 주민복지과 | B8: 예천군 효자면 도촌길3 | C8: 임점숙 | D8: 읍면어버이날 행사지원 | E8: 사회복지사업보조 | F8: 500천원*1식 | G8: 500 | H8: 500 | I8: 500 | K8: 500 | L8: 500 | M8: 500
A9: 주민복지과 | B9: 예천군 은풍면 은풍로 88 | C9: 장숙자 | D9: 읍면어버이날 행사지원 | E9: 사회복지사업보조 | F9: 720천원*1식 | G9: 720 | H9: 720 | I9: 720 | K9: 720 | L9: 720 | M9: 720
A10: 주민복지과 | B10: 예천군 감천면 충효로 1389 | C10: 방경숙 | D10: 읍면어버이날 행사지원 | E10: 사회복지사업보조 | F10: 1,470천원*1식 | G10: 1,470 | H10: 1,470 | I10: 1,470 | K10: 1,470 | L10: 1,470 | M10: 1,470
A11: 주민복지과 | B11: 예천군 미호길 162-3 | C11: 송재봉 | D11: 읍면어버이날 행사지원 | E11: 사회복지사업보조 | F11: 980천원*1식 | G11: 980 | H11: 980 | I11: 980 | K11: 980 | L11: 980 | M11: 980
A12: 주민복지과 | B12: 예천군 호명면 오천길 2 | C12: 안순호 | D12: 읍면어버이날 행사지원 | E12: 사회복지사업보조 | F12: 1,440천원*1식 | G12: 1,440 | H12: 1,440 | I12: 1,440 | K12: 1,440 | L12: 1,440 | M12: 1,440
A13: 주민복지과 | B13: 예천군 유천면 화지1길 49-11 | C13: 안동희 | D13: 읍면어버이날 행사지원 | E13: 사회복지사업보조 | F13: 1,260천원*1식 | G13: 1,260 | H13: 1,260 | I13: 1,260 | K13: 1,260 | L13: 1,260 | M13: 1,260
A14: 주민복지과 | B14: 예천군 용궁면 읍부1길 45 | C14: 정인화 | D14: 읍면어버이날 행사지원 | E14: 사회복지사업보조 | F14: 1,420천원*1식 | G14: 1,420 | H14: 1,420 | I14: 1,420 | K14: 1,420 | L14: 1,420 | M14: 1,420
A15: 주민복지과 | B15: 예천군 개포면 용개로 985 | C15: 김병묵 | D15: 읍면어버이날 행사지원 | E15: 사회복지사업보조 | F15: 960천원*1식 | G15: 960 | H15: 960 | I15: 960 | K15: 960 | L15: 960 | M15: 960
A16: 주민복지과 | B16: 예천군 지보면 지보로 126-5 | C16: 김수희 | D16: 읍면어버이날 행사지원 | E16: 사회복지사업보조 | F16: 1,600천원*1식 | G16: 1,600 | H16: 1,600 | I16: 1,600 | K16: 1,600 | L16: 1,600 | M16: 1,600
A17: 주민복지과 | B17: 예천군 풍양면 낙상2길 50 | C17: 최경숙 | D17: 읍면어버이날 행사지원 | E17: 사회복지사업보조 | F17: 1,780천원*1식 | G17: 1,780 | H17: 1,780 | I17: 1,780 | K17: 1,780 | L17: 1,780 | M17: 1,780
A18: 주민복지과 | B18: 예천군 예천읍 효자로 89 | C18: 김춘연 | D18: 2017년 읍면 할매할배의 날 행사 | E18: 민간경상사업보조 | F18: 7,000천원*1식 | G18: 6,000 | H18: 7,000 | I18: 7,000 | K18: 7,000 | L18: 7,000 | M18: 7,000
A19: 주민복지과 | B19: 예천군 용문면 금당실길 54 | C19: 최윤해 | D19: 2017년 읍면 할매할배의 날 행사 | E19: 민간경상사업보조 | F19: 5,000천원*1식 | G19: 3,600 | H19: 5,000 | I19: 5,000 | K19: 5,000 | L19: 5,000 | M19: 5,000
A20: 주민복지과 | B20: 예천군 효자면 도촌길 3 | C20: 임점숙 | D20: 2017년 읍면 할매할배의 날 행사 | E20: 민간경상사업보조 | F20: 4,000천원*1식 | G20: 2,400 | H20: 4,000 | I20: 4,000 | K20: 4,000 | L20: 4,000 | M20: 4,000
A21: 주민복지과 | B21: 예천군 은풍면 은풍로 88 | C21: 장숙자 | D21: 2017년 읍면 할매할배의 날 행사 | E21: 민간경상사업보조 | F21: 4,000천원*1식 | G21: 2,400 | H21: 4,000 | I21: 4,000 | K21: 4,000 | L21: 4,000 | M21: =L21 -> 4,000
A22: 주민복지과 | B22: 예천군 감천면 충효로 1389 | C22: 유승열 | D22: 2017년 읍면 할매할배의 날 행사 | E22: 민간경상사업보조 | F22: 5,000천원*1식 | G22: 3,600 | H22: 5,000 | I22: 5,000 | K22: 5,000 | L22: 5,000 | M22: 5,000
A23: 주민복지과 | B23: 예천군 보문면 미호길 127 | C23: 송재근 | D23: 2017년 읍면 할매할배의 날 행사 | E23: 민간경상사업보조 | F23: 4,500천원*1식 | G23: 2,400 | H23: 5,000 | I23: 4,500 | J23: 500 | K23: 4,500 | L23: 4,500 | M23: 4,500
A24: 주민복지과 | B24: 예천군 호명면 백골길 137-1 | C24: 송욱선 | D24: 2017년 읍면 할매할배의 날 행사 | E24: 민간경상사업보조 | F24: 5,000천원*1식 | G24: 3,400 | H24: 5,000 | I24: 5,000 | K24: 5,000 | L24: 5,000 | M24: 5,000
A25: 주민복지과 | B25: 예천군 유천면 예성로 699-8 | C25: 박종철 | D25: 2017년 읍면 할매할배의 날 행사 | E25: 민간경상사업보조 | F25: 5,000천원*1식 | G25: 3,400 | H25: 5,000 | I25: 5,000 | K25: 5,000 | L25: 5,000 | M25: 5,000
A26: 주민복지과 | B26: 예천군 용궁면 용궁시장길 40-1 | C26: 김기선 | D26: 2017년 읍면 할매할배의 날 행사 | E26: 민간경상사업보조 | F26: 5,000천원*1식 | G26: 3,600 | H26: 7,000 | I26: 5,000 | J26: 2,000 | K26: 5,000 | L26: 5,000 | M26: 5,000
A27: 주민복지과 | B27: 예천군 개포면 송담길 27 | C27: 김병묵 | D27: 2017년 읍면 할매할배의 날 행사 | E27: 민간경상사업보조 | F27: 4,500천원*1식 | G27: 2,400 | H27: 4,500 | I27: 4,500 | K27: 4,500 | L27: 4,500 | M27: 4,500
A28: 주민복지과 | B28: 예천군 지보면 지보로 126-5 | C28: 임우상 | D28: 2017년 읍면 할매할배의 날 행사 | E28: 민간경상사업보조 | F28: 5,500천원*1식 | G28: 3,900 | H28: 5,500 | I28: 5,500 | K28: 5,500 | L28: 5,500 | M28: =L28 -> 5,500
A29: 주민복지과 | B29: 예천군 풍양면 낙상2길 50 | C29: 최경숙 | D29: 2017년 읍면 할매할배의 날 행사 | E29: 민간경상사업보조 | F29: 5,500천원*1식 | G29: 3,900 | H29: 5,500 | I29: 5,500 | K29: 5,500 | L29: 5,500 | M29: 5,500
A30: 소계 | C30: =SUBTOTAL(103,C31:C35)&"개소" -> 5개소 | G30: =SUBTOTAL(9,G31:G35) -> 0 | H30: 6,500 | I30: 6,500 | J30: 0 | K30: 6,500 | L30: 6,500 | M30: 6,500
A31: 종합민원과 | B31: 예천읍 봉덕로 41 | C31: 송담추어탕 | D31: 손씻는시설설치지원사업 | E31: 민간자본사업보조 | F31: 1,300천원*1식 | H31: =SUM(I31:J31) -> 1,300 | I31: 1,300 | K31: 1,300 | L31: =K31 -> 1,300 | M31: =L31 -> 1,300
A32: 종합민원과 | B32: 예천읍 효자로 52 | C32: 바다양푼이동태탕 | D32: 손씻는시설설치지원사업 | E32: 민간자본사업보조 | F32: 1,300천원*1식 | H32: 1,300 | I32: 1,300 | K32: 1,300 | L32: =K32 -> 1,300 | M32: =L32 -> 1,300
A33: 종합민원과 | B33: 예천읍 맛고을길 69 | C33: 구룡포횟집 | D33: 손씻는시설설치지원사업 | E33: 민간자본사업보조 | F33: 1,300천원*1식 | H33: 1,300 | I33: 1,300 | K33: 1,300 | L33: 1,300 | M33: 1,300
A34: 종합민원과 | B34: 예천읍 효자로 78-1 | C34: 덕원아구짐 | D34: 손씻는시설설치지원사업 | E34: 민간자본사업보조 | F34: 1,300천원*1식 | H34: 1,300 | I34: 1,300 | K34: 1,300 | L34: 1,300 | M34: 1,300
A35: 종합민원과 | B35: 예천읍 효자로 80-1 | C35: 예천추어탕 | D35: 손씻는시설설치지원사업 | E35: 민간자본사업보조 | F35: 1,300천원*1식 | H35: 1,300 | I35: 1,300 | K35: 1,300 | L35: 1,300 | M35: 1,300
A36: 소계 | C36: =SUBTOTAL(103,C37:C119)&"명" -> 83명 | G36: =SUBTOTAL(9,G37:G119) -> 48,800 | H36: =SUBTOTAL(9,H37:H119) -> 1,487,464 | I36: 790,800 | J36: 696,664 | K36: 790,800 | L36: 790,800 | M36: 790,800
A37: 농정과 | B37: 예천군 예천읍 충효로 556-1 | C37: 대구경북능금농협 예천경제사업장 이정욱 | D37: 신선농산물 수출물류비 지원 | E37: 민간경상사업보조 | F37: 100,000kg*976원*15% | G37: 14,640 | H37: =SUM(I37:J37) -> 14,640 | I37: 14,640 | K37: 14,640 | L37: =K37 -> 14,640 | M37: =L37 -> 14,640
A38: 농정과 | B38: 예천군 개포면 예지로 1226 | C38: 예천군 농산물산지 유통센터 대표 이달호 | D38: 신선농산물 수출물류비 지원 | E38: 민간경상사업보조 | F38: 100,000kg*976원*15% | G38: 14,640 | H38: =SUM(I38:J38) -> 14,640 | I38: 14,640 | K38: 14,640 | L38: =K38 -> 14,640 | M38: =L38 -> 14,640
A39: 농정과 | B39: 서울시 강남구 언주로 30길 27 | C39: ㈜에버굿 대표 김용운 | D39: 신선농산물 수출물류비 지원 | E39: 민간경상사업보조 | F39: 100,000kg*976원*10% | G39: 9,760 | H39: 9,760 | I39: 9,760 | K39: 9,760 | L39: 9,760 | M39: 9,760
A40: 농정과 | B40: 대구시 동구 신천동 329-7 | C40: ㈜케이애플 대표 손규삼 | D40: 신선농산물 수출물류비 지원 | E40: 민간경상사업보조 | F40: 80,000kg*976원*10% | G40: 7,808 | H40: 7,808 | I40: 7,808 | K40: 7,808 | L40: 7,808 | M40: 7,808
A41: 농정과 | B41: 경산시 진량읍 현내길 76-8 | C41: 경북통상㈜ 대표 박순보 | D41: 신선농산물 수출물류비 지원 | E41: 민간경상사업보조 | F41: 20,000kg*976원*10% | G41: 1,952 | H41: 1,952 | I41: 1,952 | K41: 1,952 | L41: 1,952 | M41: 1,952
A42: 농정과 | B42: 효자면 왕곡길 107 | C42: 김시겸 | D42: 귀농정착지원사업 | E42: 민간자본사업보조 | F42: 5,000천원*1식*80% | H42: 5,000 | I42: 4,000 | J42: 1,000 | K42: 4,000 | L42: 4,000 | M42: 4,000
A43: 농정과 | B43: 은풍면 한감길 65 | C43: 백경돈 | D43: 귀농정착지원사업 | E43: 민간자본사업보조 | F43: 5,000천원*1식*80% | H43: 6,000 | I43: 4,000 | J43: 2,000 | K43: 4,000 | L43: 4,000 | M43: 4,000
A44: 농정과 | B44: 감천면 관현1길 6 | C44: 윤경태 | D44: 귀농정착지원사업 | E44: 민간자본사업보조 | F44: 5,000천원*1식*80% | H44: 5,000 | I44: 4,000 | J44: 1,000 | K44: 4,000 | L44: 4,000 | M44: 4,000
A45: 농정과 | B45: 감천면 수용골길 210-98 | C45: 조경희 | D45: 귀농정착지원사업 | E45: 민간자본사업보조 | F45: 5,000천원*1식*80% | H45: 6,000 | I45: 4,000 | J45: 2,000 | K45: 4,000 | L45: 4,000 | M45: 4,000
A46: 농정과 | B46: 용궁면 신당길 19 | C46: 김영규 | D46: 귀농정착지원사업 | E46: 민간자본사업보조 | F46: 5,000천원*1식*80% | H46: 5,000 | I46: 4,000 | J46: 1,000 | K46: 4,000 | L46: 4,000 | M46: 4,000
A47: 농정과 | B47: 용궁면 강당길 65 | C47: 서종규 | D47: 귀농정착지원사업 | E47: 민간자본사업보조 | F47: 5,000천원*1식*80% | H47: 5,000 | I47: 4,000 | J47: 1,000 | K47: 4,000 | L47: 4,000 | M47: 4,000
A48: 농정과 | B48: 개포면 예지로 1189-6 | C48: 정동원 | D48: 귀농정착지원사업 | E48: 민간자본사업보조 | F48: 5,000천원*1식*80% | H48: 5,500 | I48: 4,000 | J48: 1,500 | K48: 4,000 | L48: 4,000 | M48: =L48 -> 4,000
A49: 농정과 | B49: 지보면 신풍1리길 55-2 | C49: 윤유찬 | D49: 귀농정착지원사업 | E49: 민간자본사업보조 | F49: 5,000천원*1식*80% | H49: 5,000 | I49: 4,000 | J49: 1,000 | K49: 4,000 | L49: 4,000 | M49: 4,000
A50: 농정과 | B50: 지보면 지보로 182 | C50: 최규한 | D50: 귀농정착지원사업 | E50: 민간자본사업보조 | F50: 5,000천원*1식*80% | H50: 5,000 | I50: 4,000 | J50: 1,000 | K50: 4,000 | L50: 4,000 | M50: 4,000
A51: 농정과 | B51: 풍양면 공덕길 23 | C51: 이정옥 | D51: 귀농정착지원사업 | E51: 민간자본사업보조 | F51: 5,000천원*1식*80% | H51: 5,000 | I51: 4,000 | J51: 1,000 | K51: 4,000 | L51: 4,000 | M51: 4,000
A52: 농정과 | B52: 예천읍 갈구2길 263-30 | C52: 우갑기 | D52: 귀농인 영농기반 지원 | E52: 민간자본사업보조 | F52: 5,000천원*1식*80% | H52: 5,000 | I52: 4,000 | J52: 1,000 | K52: 4,000 | L52: 4,000 | M52: 4,000
A53: 농정과 | B53: 예천읍 충효로 209-9, 303호 (이원퍼스트) | C53: 이순례 | D53: 귀농인 영농기반 지원 | E53: 민간자본사업보조 | F53: 5,000천원*1식*80% | H53: 5,000 | I53: 4,000 | J53: 1,000 | K53: 4,000 | L53: 4,000 | M53: 4,000
A54: 농정과 | B54: 예천읍 대심2길 33-20 | C54: 이준영 | D54: 귀농인 영농기반 지원 | E54: 민간자본사업보조 | F54: 5,000천원*1식*80% | H54: 5,000 | I54: 4,000 | J54: 1,000 | K54: 4,000 | L54: 4,000 | M54: =L54 -> 4,000
A55: 농정과 | B55: 용문면 용문사길 285 | C55: 이금숙 | D55: 귀농인 영농기반 지원 | E55: 민간자본사업보조 | F55: 5,000천원*1식*80% | H55: 11,500 | I55: 4,000 | J55: 7,500 | K55: 4,000 | L55: 4,000 | M55: 4,000
A56: 농정과 | B56: 용문면 유전길 15-1 | C56: 이재호 | D56: 귀농인 영농기반 지원 | E56: 민간자본사업보조 | F56: 5,000천원*1식*80% | H56: 6,400 | I56: 4,000 | J56: 2,400 | K56: 4,000 | L56: 4,000 | M56: 4,000
A57: 농정과 | B57: 효자면 내초항길 177-104 | C57: 강성원 | D57: 귀농인 영농기반 지원 | E57: 민간자본사업보조 | F57: 5,000천원*1식*80% | H57: 6,000 | I57: 4,000 | J57: 2,000 | K57: 4,000 | L57: 4,000 | M57: 4,000
A58: 농정과 | B58: 효자면 도효자로 1937-13 | C58: 이화식 | D58: 귀농인 영농기반 지원 | E58: 민간자본사업보조 | F58: 5,000천원*1식*80% | H58: 5,000 | I58: 4,000 | J58: 1,000 | K58: 4,000 | L58: 4,000 | M58: 4,000
A59: 농정과 | B59: 은풍면 부용봉길 183-20 | C59: 김상관 | D59: 귀농인 영농기반 지원 | E59: 민간자본사업보조 | F59: 5,000천원*1식*80% | H59: 5,000 | I59: 4,000 | J59: 1,000 | K59: 4,000 | L59: 4,000 | M59: 4,000
A60: 농정과 | B60: 은풍면 어림성길 36 | C60: 서민경 | D60: 귀농인 영농기반 지원 | E60: 민간자본사업보조 | F60: 5,000천원*1식*80% | H60: 10,000 | I60: 4,000 | J60: 6,000 | K60: 4,000 | L60: 4,000 | M60: 4,000
A61: 농정과 | B61: 감천면 진작길 32 | C61: 권영우 | D61: 귀농인 영농기반 지원 | E61: 민간자본사업보조 | F61: 5,000천원*1식*80% | H61: 5,000 | I61: 4,000 | J61: 1,000 | K61: 4,000 | L61: 4,000 | M61: 4,000
A62: 농정과 | B62: 감천면 자봉길 58 | C62: 윤옥희 | D62: 귀농인 영농기반 지원 | E62: 민간자본사업보조 | F62: 5,000천원*1식*80% | H62: 5,000 | I62: 4,000 | J62: 1,000 | K62: 4,000 | L62: 4,000 | M62: 4,000
A63: 농정과 | B63: 감천면 벌방1길 7-1 | C63: 장병열 | D63: 귀농인 영농기반 지원 | E63: 민간자본사업보조 | F63: 5,000천원*1식*80% | H63: 5,000 | I63: 4,000 | J63: 1,000 | K63: 4,000 | L63: 4,000 | M63: 4,000
A64: 농정과 | B64: 호명면 인포길 24-6 | C64: 김낙현 | D64: 귀농인 영농기반 지원 | E64: 민간자본사업보조 | F64: 5,000천원*1식*80% | H64: 5,000 | I64: 4,000 | J64: 1,000 | K64: 4,000 | L64: 4,000 | M64: 4,000
A65: 농정과 | B65: 유천면 가동1길 23 | C65: 강종구 | D65: 귀농인 영농기반 지원 | E65: 민간자본사업보조 | F65: 5,000천원*1식*80% | H65: 6,764 | I65: 4,000 | J65: 2,764 | K65: 4,000 | L65: 4,000 | M65: =L65 -> 4,000
A66: 농정과 | B66: 유천면 수심1길 87-8 | C66: 이선화 | D66: 귀농인 영농기반 지원 | E66: 민간자본사업보조 | F66: 5,000천원*1식*80% | H66: 5,000 | I66: 4,000 | J66: 1,000 | K66: 4,000 | L66: 4,000 | M66: 4,000
A67: 농정과 | B67: 용궁면 대은길 51-22 | C67: 윤도현 | D67: 귀농인 영농기반 지원 | E67: 민간자본사업보조 | F67: 5,000천원*1식*80% | H67: 5,000 | I67: 4,000 | J67: 1,000 | K67: 4,000 | L67: 4,000 | M67: 4,000
A68: 농정과 | B68: 용궁면 실음실길 67-3 | C68: 윤영숙 | D68: 귀농인 영농기반 지원 | E68: 민간자본사업보조 | F68: 5,000천원*1식*80% | H68: 5,000 | I68: 4,000 | J68: 1,000 | K68: 4,000 | L68: 4,000 | M68: 4,000
A69: 농정과 | B69: 개포면 이사리길 38 | C69: 신동준 | D69: 귀농인 영농기반 지원 | E69: 민간자본사업보조 | F69: 5,000천원*1식*80% | H69: 6,000 | I69: 4,000 | J69: 2,000 | K69: 4,000 | L69: 4,000 | M69: 4,000
A70: 농정과 | B70: 지보면 오송길 34-14 | C70: 권재규 | D70: 귀농인 영농기반 지원 | E70: 민간자본사업보조 | F70: 5,000천원*1식*80% | H70: 7,000 | I70: 4,000 | J70: 3,000 | K70: 4,000 | L70: 4,000 | M70: 4,000
A71: 농정과 | B71: 지보면 배화길 70 | C71: 정진성 | D71: 귀농인 영농기반 지원 | E71: 민간자본사업보조 | F71: 5,000천원*1식*80% | H71: 5,500 | I71: 4,000 | J71: 1,500 | K71: 4,000 | L71: 4,000 | M71: 4,000
A72: 농정과 | B72: 지보면 수월3길 162 | C72: 조명제 | D72: 귀농인 영농기반 지원 | E72: 민간자본사업보조 | F72: 5,000천원*1식*80% | H72: 60,000 | I72: 4,000 | J72: 56,000 | K72: 4,000 | L72: 4,000 | M72: 4,000
A73: 농정과 | B73: 지보면 지포길 53-1 | C73: 조현필 | D73: 귀농인 영농기반 지원 | E73: 민간자본사업보조 | F73: 5,000천원*1식*80% | H73: 5,000 | I73: 4,000 | J73: 1,000 | K73: 4,000 | L73: 4,000 | M73: 4,000
A74: 농정과 | B74: 풍양면 낙상1길 27-3 | C74: 김승현 | D74: 귀농인 영농기반 지원 | E74: 민간자본사업보조 | F74: 5,000천원*1식*80% | H74: 5,000 | I74: 4,000 | J74: 1,000 | K74: 4,000 | L74: 4,000 | M74: 4,000
A75: 농정과 | B75: 풍양면 산림길 156 | C75: 김춘식 | D75: 귀농인 영농기반 지원 | E75: 민간자본사업보조 | F75: 5,000천원*1식*80% | H75: 5,000 | I75: 4,000 | J75: 1,000 | K75: 4,000 | L75: 4,000 | M75: 4,000
A76: 농정과 | B76: 풍양면 흔전길 222-9 | C76: 서명자 | D76: 귀농인 영농기반 지원 | E76: 민간자본사업보조 | F76: 5,000천원*1식*80% | H76: 6,000 | I76: 4,000 | J76: 2,000 | K76: 4,000 | L76: 4,000 | M76: =L76 -> 4,000
A77: 농정과 | B77: 풍양면 수산못길 123-1 | C77: 오치순 | D77: 귀농인 영농기반 지원 | E77: 민간자본사업보조 | F77: 5,000천원*1식*80% | H77: 5,000 | I77: 4,000 | J77: 1,000 | K77: 4,000 | L77: 4,000 | M77: 4,000
A78: 농정과 | B78: 풍양면 흔전길 115-4 | C78: 장순옥 | D78: 귀농인 영농기반 지원 | E78: 민간자본사업보조 | F78: 5,000천원*1식*80% | H78: 5,000 | I78: 4,000 | J78: 1,000 | K78: 4,000 | L78: 4,000 | M78: =L78 -> 4,000
A79: 농정과 | B79: 풍양면 우망길 344 | C79: 정의영 | D79: 귀농인 영농기반 지원 | E79: 민간자본사업보조 | F79: 5,000천원*1식*80% | H79: 5,000 | I79: 4,000 | J79: 1,000 | K79: 4,000 | L79: 4,000 | M79: 4,000
A80: 농정과 | B80: 풍양면 공덕길 23 | C80: 최준영 | D80: 귀농인 영농기반 지원 | E80: 민간자본사업보조 | F80: 5,000천원*1식*80% | H80: 5,000 | I80: 4,000 | J80: 1,000 | K80: 4,000 | L80: 4,000 | M80: 4,000
A81: 농정과 | B81: 효자면 왕곡길 107 | C81: 김시겸 | D81: 귀농인 빈집수리비 지원 | E81: 민간자본사업보조 | F81: 5,000천원*1식*80% | H81: 5,000 | I81: 4,000 | J81: 1,000 | K81: 4,000 | L81: 4,000 | M81: 4,000
A82: 농정과 | B82: 보문면 오리골길 45 | C82: 김영란 | D82: 귀농인 빈집수리비 지원 | E82: 민간자본사업보조 | F82: 5,000천원*1식*80% | H82: 5,000 | I82: 4,000 | J82: 1,000 | K82: 4,000 | L82: 4,000 | M82: 4,000
A83: 농정과 | B83: 왕신오이작목반 | C83: 이기태 | D83: 원예특용작물 토양개량제 지원 | E83: 민간자본사업보조 | F83: 20,000원*500포*50% | H83: 10,000 | I83: 5,000 | J83: 5,000 | K83: 5,000 | L83: 5,000 | M83: 5,000
A84: 농정과 | B84: 오미자작목반 | C84: 김병구 | D84: 원예특용작물 토양개량제 지원 | E84: 민간자본사업보조 | F84: 20,000원*750포*50% | H84: 15,000 | I84: 7,500 | J84: 7,500 | K84: 7,500 | L84: 7,500 | M84: 7,500
A85: 농정과 | B85: 복분자작목반 | C85: 조경신 | D85: 원예특용작물 토양개량제 지원 | E85: 민간자본사업보조 | F85: 20,000원*750포*50% | H85: 15,000 | I85: 7,500 | J85: 7,500 | K85: 7,500 | L85: 7,500 | M85: 7,500
A86: 농정과 | B86: 감천약초작목반 | C86: 김방한 | D86: 원예특용작물 토양개량제 지원 | E86: 민간자본사업보조 | F86: 20,000원*750포*50% | H86: 15,000 | I86: 7,500 | J86: 7,500 | K86: 7,500 | L86: 7,500 | M86: 7,500
A87: 농정과 | B87: 관현토마토작목반 | C87: 윤병도 | D87: 원예특용작물 토양개량제 지원 | E87: 민간자본사업보조 | F87: 20,000원*500포*50% | H87: 10,000 | I87: 5,000 | J87: 5,000 | K87: 5,000 | L87: 5,000 | M87: 5,000
A88: 농정과 | B88: 예천인삼작목반 | C88: 박성태 | D88: 원예특용작물 토양개량제 지원 | E88: 민간자본사업보조 | F88: 20,000원*1,500포*50% | H88: 30,000 | I88: 15,000 | J88: 15,000 | K88: 15,000 | L88: 15,000 | M88: 15,000
A89: 농정과 | B89: 새움토마토공선회 | C89: 황윤석 | D89: 원예특용작물 토양개량제 지원 | E89: 민간자본사업보조 | F89: 20,000원*750포*50% | H89: 15,000 | I89: 7,500 | J89: 7,500 | K89: 7,500 | L89: 7,500 | M89: =L89 -> 7,500
A90: 농정과 | B90: 감천청결고추작목반 | C90: 김강현 | D90: 원예특용작물 토양개량제 지원 | E90: 민간자본사업보조 | F90: 20,000원*500포*50% | H90: 10,000 | I90: 5,000 | J90: 5,000 | K90: 5,000 | L90: 5,000 | M90: =L90 -> 5,000
A91: 농정과 | B91: 학가산 산수박 작목반 | C91: 이영배 | D91: 원예특용작물 토양개량제 지원 | E91: 민간자본사업보조 | F91: 20,000원*1,500포*50% | H91: 30,000 | I91: 15,000 | J91: 15,000 | K91: 15,000 | L91: 15,000 | M91: 15,000
A92: 농정과 | B92: 예천통합작목반 | C92: 배재욱 | D92: 원예특용작물 토양개량제 지원 | E92: 민간자본사업보조 | F92: 20,000원*1,500포*50% | H92: 30,000 | I92: 15,000 | J92: 15,000 | K92: 15,000 | L92: 15,000 | M92: 15,000
A93: 농정과 | B93: 참외 작목반 | C93: 우종규 | D93: 원예특용작물 토양개량제 지원 | E93: 민간자본사업보조 | F93: 20,000원*1,500포*50% | H93: 30,000 | I93: 15,000 | J93: 15,000 | K93: 15,000 | L93: 15,000 | M93: 15,000
A94: 농정과 | B94: 유천원예회 | C94: 윤석규 | D94: 원예특용작물 토양개량제 지원 | E94: 민간자본사업보조 | F94: 20,000원*500포*50% | H94: 10,000 | I94: 5,000 | J94: 5,000 | K94: 5,000 | L94: 5,000 | M94: 5,000
A95: 농정과 | B95: 용궁회룡포원예회 | C95: 박원식 | D95: 원예특용작물 토양개량제 지원 | E95: 민간자본사업보조 | F95: 20,000원*2,000포*50% | H95: 40,000 | I95: 20,000 | J95: 20,000 | K95: 20,000 | L95: 20,000 | M95: 20,000
A96: 농정과 | B96: 시설채소작목반 | C96: 윤길현 | D96: 원예특용작물 토양개량제 지원 | E96: 민간자본사업보조 | F96: 20,000원*1,900포*50% | H96: 38,000 | I96: 19,000 | J96: 19,000 | K96: 19,000 | L96: 19,000 | M96: 19,000
A97: 농정과 | B97: 개포풋고추작목회 | C97: 박용구 | D97: 원예특용작물 토양개량제 지원 | E97: 민간자본사업보조 | F97: 20,000원*2,200포*50% | H97: 44,000 | I97: 22,000 | J97: 22,000 | K97: 22,000 | L97: 22,000 | M97: 22,000
A98: 농정과 | B98: 예천양채류작목회 | C98: 김동한 | D98: 원예특용작물 토양개량제 지원 | E98: 민간자본사업보조 | F98: 20,000원*900포*50% | H98: 18,000 | I98: 9,000 | J98: 9,000 | K98: 9,000 | L98: 9,000 | M98: 9,000
A99: 농정과 | B99: 장송수박작목반 | C99: 권태삼 | D99: 원예특용작물 토양개량제 지원 | E99: 민간자본사업보조 | F99: 20,000원*750포*50% | H99: 15,000 | I99: 7,500 | J99: 7,500 | K99: 7,500 | L99: 7,500 | M99: 7,500
A100: 농정과 | B100: 신풍회 | C100: 유승상 | D100: 원예특용작물 토양개량제 지원 | E100: 민간자본사업보조 | F100: 20,000원*750포*50% | H100: 15,000 | I100: 7,500 | J100: 7,500 | K100: 7,500 | L100: 7,500 | M100: 7,500
A101: 농정과 | B101: 풍양양파작목반 | C101: 김영태 | D101: 원예특용작물 토양개량제 지원 | E101: 민간자본사업보조 | F101: 20,000원*500포*50% | H101: 10,000 | I101: 5,000 | J101: 5,000 | K101: 5,000 | L101: 5,000 | M101: =L101 -> 5,000
A102: 농정과 | B102: 용문면 성현길 88 | C102: 한위석 | D102: 소규모 벼 육묘공장 지원사업 | E102: 민간자본사업보조 | F102: 42,000,000원 * 1동 * 50% | H102: =SUM(I102:J102) -> 42,000 | I102: 21,000 | J102: 21,000 | K102: 21,000 | L102: =K102 -> 21,000 | M102: 21,000
A103: 농정과 | B103: 용문면 사부령길 260-4 | C103: 황상섭 | D103: 소규모 벼 육묘공장 지원사업 | E103: 민간자본사업보조 | F103: 42,000,000원 * 1동 * 50% | H103: 42,000 | I103: 21,000 | J103: 21,000 | K103: 21,000 | L103: 21,000 | M103: 21,000
A104: 농정과 | B104: 용문면 맛질길 117 | C104: 권재원 | D104: 소규모 벼 육묘공장 지원사업 | E104: 민간자본사업보조 | F104: 42,000,000원 * 1동 * 50% | H104: 42,000 | I104: 21,000 | J104: 21,000 | K104: 21,000 | L104: 21,000 | M104: 21,000
A105: 농정과 | B105: 용문면 선동길 134-11 | C105: 김구진 | D105: 소규모 벼 육묘공장 지원사업 | E105: 민간자본사업보조 | F105: 42,000,000원 * 1동 * 50% | H105: 42,000 | I105: 21,000 | J105: 21,000 | K105: 21,000 | L105: 21,000 | M105: =L105 -> 21,000
A106: 농정과 | B106: 감천면 관현1길 16 | C106: 박춘식 | D106: 소규모 벼 육묘공장 지원사업 | E106: 민간자본사업보조 | F106: 42,000,000원 * 1동 * 50% | H106: 42,000 | I106: 21,000 | J106: 21,000 | K106: 21,000 | L106: 21,000 | M106: 21,000
A107: 농정과 | B107: 감천면 현내2길 55 | C107: 조동섭 | D107: 소규모 벼 육묘공장 지원사업 | E107: 민간자본사업보조 | F107: 42,000,000원 * 1동 * 50% | H107: 42,000 | I107: 21,000 | J107: 21,000 | K107: 21,000 | L107: 21,000 | M107: 21,000
A108: 농정과 | B108: 감천면 유동길 169-14 | C108: 김덕기 | D108: 소규모 벼 육묘공장 지원사업 | E108: 민간자본사업보조 | F108: 42,000,000원 * 1동 * 50% | H108: 42,000 | I108: 21,000 | J108: 21,000 | K108: 21,000 | L108: 21,000 | M108: 21,000
A109: 농정과 | B109: 보문면 수양길 5 | C109: 김정태 | D109: 소규모 벼 육묘공장 지원사업 | E109: 민간자본사업보조 | F109: 42,000,000원 * 1동 * 50% | H109: 42,000 | I109: 21,000 | J109: 21,000 | K109: 21,000 | L109: 21,000 | M109: 21,000
A110: 농정과 | B110: 호명면 담암길 90-1 | C110: 장윤 | D110: 소규모 벼 육묘공장 지원사업 | E110: 민간자본사업보조 | F110: 42,000,000원 * 1동 * 50% | H110: 42,000 | I110: 21,000 | J110: 21,000 | K110: 21,000 | L110: 21,000 | M110: 21,000
A111: 농정과 | B111: 유천면 수심2길 17 | C111: 최병준 | D111: 소규모 벼 육묘공장 지원사업 | E111: 민간자본사업보조 | F111: 42,000,000원 * 1동 * 50% | H111: 42,000 | I111: 21,000 | J111: 21,000 | K111: 21,000 | L111: 21,000 | M111: 21,000
A112: 농정과 | B112: 개포면 장송길 130 | C112: 이수희 | D112: 소규모 벼 육묘공장 지원사업 | E112: 민간자본사업보조 | F112: 42,000,000원 * 1동 * 50% | H112: 42,000 | I112: 21,000 | J112: 21,000 | K112: 21,000 | L112: 21,000 | M112: 21,000
A113: 농정과 | B113: 개포면 송담길 142-24 | C113: 남기호 | D113: 소규모 벼 육묘공장 지원사업 | E113: 민간자본사업보조 | F113: 42,000,000원 * 1동 * 50% | H113: 42,000 | I113: 21,000 | J113: 21,000 | K113: 21,000 | L113: 21,000 | M113: 21,000
A114: 농정과 | B114: 지보면 만화1길 38-19 | C114: 이창남 | D114: 소규모 벼 육묘공장 지원사업 | E114: 민간자본사업보조 | F114: 42,000,000원 * 1동 * 50% | H114: 42,000 | I114: 21,000 | J114: 21,000 | K114: 21,000 | L114: 21,000 | M114: 21,000
A115: 농정과 | B115: 지보면 매화길 36 | C115: 정건영 | D115: 소규모 벼 육묘공장 지원사업 | E115: 민간자본사업보조 | F115: 42,000,000원 * 1동 * 50% | H115: 42,000 | I115: 21,000 | J115: 21,000 | K115: 21,000 | L115: 21,000 | M115: 21,000
A116: 농정과 | B116: 풍양면 효제길 39 | C116: 김춘복 | D116: 소규모 벼 육묘공장 지원사업 | E116: 민간자본사업보조 | F116: 42,000,000원 * 1동 * 50% | H116: 42,000 | I116: 21,000 | J116: 21,000 | K116: 21,000 | L116: 21,000 | M116: =L116 -> 21,000
A117: 농정과 | B117: 풍양면 낙상1길 58-13 | C117: 홍상진 | D117: 소규모 벼 육묘공장 지원사업 | E117: 민간자본사업보조 | F117: 42,000,000원 * 1동 * 50% | H117: 42,000 | I117: 21,000 | J117: 21,000 | K117: 21,000 | L117: 21,000 | M117: 21,000
A118: 농정과 | B118: 풍양면 봉림길 6-1 | C118: 박인수 | D118: 소규모 벼 육묘공장 지원사업 | E118: 민간자본사업보조 | F118: 42,000,000원 * 1동 * 50% | H118: 42,000 | I118: 21,000 | J118: 21,000 | K118: 21,000 | L118: 21,000 | M118: 21,000
A119: 농정과 | B119: 풍양면 수산못길 100-3 | C119: 최방수 | D119: 소규모 벼 육묘공장 지원사업 | E119: 민간자본사업보조 | F119: 42,000,000원 * 1동 * 50% | H119: 42,000 | I119: 21,000 | J119: 21,000 | K119: 21,000 | L119: 21,000 | M119: 21,000
A120: 소계 | C120: =SUBTOTAL(103,C121:C947)&"명" -> 827명 | G120: =SUBTOTAL(9,G121:G131) -> 0 | H120: =SUBTOTAL(9,H121:H947) -> 482,690 | I120: =SUBTOTAL(9,I121:I947) -> 301,914 | J120: 180,776 | K120: 301,914 | L120: 301,914 | M120: 301,914
A121: 산림축산과 | B121: 예천읍 구남골길 59-49 | C121: 이만현 | D121: 염소 사료급이기 지원사업 | E121: 민간자본사업보조 | F121: 200,000원*2개*60% | H121: =SUM(I121:J121) -> 400 | I121: 240 | J121: 160 | K121: =I121 -> 240 | L121: =K121 -> 240 | M121: =L121 -> 240
A122: 산림축산과 | B122: 예천읍 왕신길 266-6 | C122: 전재홍 | D122: 염소 사료급이기 지원사업 | E122: 민간자본사업보조 | F122: 200,000원*3개*60% | H122: =SUM(I122:J122) -> 600 | I122: 360 | J122: 240 | K122: =I122 -> 360 | L122: =K122 -> 360 | M122: =L122 -> 360
A123: 산림축산과 | B123: 감천면 미석1길 82 | C123: 김원호 | D123: 염소 사료급이기 지원사업 | E123: 민간자본사업보조 | F123: 200,000원*1개*60% | H123: 200 | I123: 120 | J123: 80 | K123: 120 | L123: 120 | M123: 120
A124: 산림축산과 | B124: 감천면 소백로 131-58 | C124: 성종선 | D124: 염소 사료급이기 지원사업 | E124: 민간자본사업보조 | F124: 200,000원*1개*60% | H124: 200 | I124: 120 | J124: 80 | K124: 120 | L124: 120 | M124: 120
A125: 산림축산과 | B125: 감천면 범바우길 151-55 | C125: 천필규 | D125: 염소 사료급이기 지원사업 | E125: 민간자본사업보조 | F125: 200,000원*1개*60% | H125: 200 | I125: 120 | J125: 80 | K125: 120 | L125: 120 | M125: 120
A126: 산림축산과 | B126: 보문면 방점이길 31 | C126: 정정호 | D126: 염소 사료급이기 지원사업 | E126: 민간자본사업보조 | F126: 200,000원*1개*60% | H126: 200 | I126: 120 | J126: 80 | K126: 120 | L126: 120 | M126: 120
A127: 산림축산과 | B127: 유천면 고산길 84 | C127: 박태구 | D127: 염소 사료급이기 지원사업 | E127: 민간자본사업보조 | F127: 200,000원*10개*60% | H127: 2,000 | I127: 1,200 | J127: 800 | K127: 1,200 | L127: 1,200 | M127: 1,200
A128: 산림축산과 | B128: 용궁면 실음실길 67-1 | C128: 김헌태 | D128: 염소 사료급이기 지원사업 | E128: 민간자본사업보조 | F128: 200,000원*5개*60% | H128: 1,000 | I128: 600 | J128: 400 | K128: 600 | L128: 600 | M128: 600
A129: 산림축산과 | B129: 용궁면 경암길 371 | C129: 임종완 | D129: 염소 사료급이기 지원사업 | E129: 민간자본사업보조 | F129: 200,000원*10개*60% | H129: 2,000 | I129: 1,200 | J129: 800 | K129: 1,200 | L129: 1,200 | M129: 1,200
A130: 산림축산과 | B130: 개포면 황산2길 19-10 | C130: 정춘자 | D130: 염소 사료급이기 지원사업 | E130: 민간자본사업보조 | F130: 200,000원*5개*60% | H130: 1,000 | I130: 600 | J130: 400 | K130: 600 | L130: 600 | M130: 600
A131: 산림축산과 | B131: 지보면 어신3길 15-67 | C131: 윤정현 | D131: 염소 사료급이기 지원사업 | E131: 민간자본사업보조 | F131: 200,000원*1개*60% | H131: 200 | I131: 120 | J131: 80 | K131: 120 | L131: 120 | M131: 120
A132: 산림축산과 | B132: 지보면 어화길 105 | C132: 조경래 | D132: 염소 사료급이기 지원사업 | E132: 민간자본사업보조 | F132: 200,000원*3개*60% | H132: 600 | I132: 360 | J132: 240 | K132: 360 | L132: 360 | M132: 360
A133: 산림축산과 | B133: 용궁면 실음실길 67-1 | C133: 김헌태 | D133: 염소 자동급수기 지원사업 | E133: 민간자본사업보조 | F133: 250,000원*5대*60% | H133: 1,250 | I133: 750 | J133: 500 | K133: 750 | L133: 750 | M133: 750
A134: 산림축산과 | B134: 감천면 미석1길 82 | C134: 김원호 | D134: 염소 자동급수기 지원사업 | E134: 민간자본사업보조 | F134: 250,000원*1대*60% | H134: 250 | I134: 150 | J134: 100 | K134: 150 | L134: 150 | M134: 150
A135: 산림축산과 | B135: 감천면 범바우길 151-55 | C135: 천필규 | D135: 염소 자동급수기 지원사업 | E135: 민간자본사업보조 | F135: 250,000원*1대*60% | H135: 250 | I135: 150 | J135: 100 | K135: 150 | L135: 150 | M135: 150
A136: 산림축산과 | B136: 보문면 방점이길 31 | C136: 정정호 | D136: 염소 자동급수기 지원사업 | E136: 민간자본사업보조 | F136: 250,000원*1대*60% | H136: 250 | I136: 150 | J136: 100 | K136: 150 | L136: 150 | M136: 150
A137: 산림축산과 | B137: 호명면 상간산길 10-4 | C137: 정광수 | D137: 염소 자동급수기 지원사업 | E137: 민간자본사업보조 | F137: 250,000원*2개*60% | H137: 500 | I137: 300 | J137: 200 | K137: =I137 -> 300 | L137: 300 | M137: 300
A138: 산림축산과 | B138: 용궁면 경암길 371 | C138: 임종완 | D138: 염소 자동급수기 지원사업 | E138: 민간자본사업보조 | F138: 250,000원*10대*60% | H138: 2,500 | I138: 1,500 | J138: 1,000 | K138: 1,500 | L138: 1,500 | M138: 1,500
A139: 산림축산과 | B139: 개포면 황산2길 19-10 | C139: 정춘자 | D139: 염소 자동급수기 지원사업 | E139: 민간자본사업보조 | F139: 250,000원*5대*60% | H139: 1,250 | I139: 750 | J139: 500 | K139: 750 | L139: 750 | M139: 750
A140: 산림축산과 | B140: 지보면 어신2길 210-45 | C140: 강옥자 | D140: 염소 자동급수기 지원사업 | E140: 민간자본사업보조 | F140: 250,000원*1대*60% | H140: 250 | I140: 150 | J140: 100 | K140: 150 | L140: 150 | M140: 150
A141: 산림축산과 | B141: 지보면 어신3길 15-67 | C141: 윤정현 | D141: 염소 자동급수기 지원사업 | E141: 민간자본사업보조 | F141: 250,000원*2대*60% | H141: 500 | I141: 300 | J141: 200 | K141: 300 | L141: 300 | M141: 300
A142: 산림축산과 | B142: 지보면 어화길 105 | C142: 조경래 | D142: 염소 자동급수기 지원사업 | E142: 민간자본사업보조 | F142: 250,000원*3대*60% | H142: 750 | I142: 450 | J142: 300 | K142: 450 | L142: 450 | M142: 450
A143: 산림축산과 | B143: 호명면 종산길 204-1 | C143: 이형석 | D143: 계란 난좌 지원사업 | E143: 민간자본사업보조 | F143: 80원*35,000장*60% | H143: 2,800 | I143: 1,680 | J143: 1,120 | K143: 1,680 | L143: 1,680 | M143: 1,680
A144: 산림축산과 | B144: 지보면 예지로 489-11 | C144: 이준석 | D144: 계란 난좌 지원사업 | E144: 민간자본사업보조 | F144: 80원*5,000장*60% | H144: 400 | I144: 240 | J144: 160 | K144: 240 | L144: 240 | M144: 240
A145: 산림축산과 | B145: 개포면 죽전길 83 | C145: 강석오 | D145: 육계사 깔짚 지원사업 | E145: 민간자본사업보조 | F145: 5,000원*820포*60% | H145: 4,100 | I145: 2,460 | J145: 1,640 | K145: 2,460 | L145: 2,460 | M145: 2,460
A146: 산림축산과 | B146: 풍양면 흔전길 100-57 | C146: 노 엘 | D146: 육계사 깔짚 지원사업 | E146: 민간자본사업보조 | F146: 5,000원*1130포*60% | H146: 5,650 | I146: 3,390 | J146: 2,260 | K146: 3,390 | L146: 3,390 | M146: 3,390
A147: 산림축산과 | B147: 풍양면 흔전길 100-57 | C147: 노비봉 | D147: 육계사 깔짚 지원사업 | E147: 민간자본사업보조 | F147: 5,000원*1130포*60% | H147: 5,650 | I147: 3,390 | J147: 2,260 | K147: 3,390 | L147: 3,390 | M147: 3,390
A148: 산림축산과 | B148: 풍양면 풍지로 174-17 | C148: 유석수 | D148: 육계사 깔짚 지원사업 | E148: 민간자본사업보조 | F148: 5,000원*440포*60% | H148: 2,200 | I148: 1,320 | J148: 880 | K148: 1,320 | L148: 1,320 | M148: 1,320
A149: 산림축산과 | B149: 풍양면 수산못길 486 | C149: 장일근 | D149: 육계사 깔짚 지원사업 | E149: 민간자본사업보조 | F149: 5,000원*800포*60% | H149: 4,000 | I149: 2,400 | J149: 1,600 | K149: 2,400 | L149: 2,400 | M149: 2,400
A150: 산림축산과 | B150: 풍양면 효제길 48 | C150: 정 숙 | D150: 육계사 깔짚 지원사업 | E150: 민간자본사업보조 | F150: 5,000원*800포*60% | H150: 4,000 | I150: 2,400 | J150: 1,600 | K150: 2,400 | L150: 2,400 | M150: 2,400
A151: 산림축산과 | B151: 풍양면 청곡길 113-12 | C151: 정승모 | D151: 육계사 깔짚 지원사업 | E151: 민간자본사업보조 | F151: 5,000원*660포*60% | H151: 3,300 | I151: 1,980 | J151: 1,320 | K151: 1,980 | L151: 1,980 | M151: 1,980
A152: 산림축산과 | B152: 풍양면 삼강로 11-1 | C152: 주석기 | D152: 육계사 깔짚 지원사업 | E152: 민간자본사업보조 | F152: 5,000원*1060포*60% | H152: 5,300 | I152: 3,180 | J152: 2,120 | K152: 3,180 | L152: 3,180 | M152: 3,180
A153: 산림축산과 | B153: 풍양면 낙상1길 108-32 | C153: 황길주 | D153: 육계사 깔짚 지원사업 | E153: 민간자본사업보조 | F153: 5,000원*1060포*60% | H153: 5,300 | I153: 3,180 | J153: 2,120 | K153: 3,180 | L153: 3,180 | M153: 3,180
A154: 산림축산과 | B154: 예천읍 남읍내길 6-115 | C154: 김손정 | D154: 축사 환기시설 지원사업 | E154: 민간자본사업보조 | F154: 300,000원*3대*60% | H154: 900 | I154: 540 | J154: 360 | K154: 540 | L154: 540 | M154: 540
A155: 산림축산과 | B155: 예천읍 지내길 64 | C155: 김운한 | D155: 축사 환기시설 지원사업 | E155: 민간자본사업보조 | F155: 300,000원*2대*60% | H155: 600 | I155: 360 | J155: 240 | K155: 360 | L155: 360 | M155: 360
A156: 산림축산과 | B156: 예천읍 용전길 97-7 | C156: 박성근 | D156: 축사 환기시설 지원사업 | E156: 민간자본사업보조 | F156: 300,000원*2대*60% | H156: 600 | I156: 360 | J156: 240 | K156: 360 | L156: 360 | M156: 360
A157: 산림축산과 | B157: 예천읍 상설시장1길 13 | C157: 송영한 | D157: 축사 환기시설 지원사업 | E157: 민간자본사업보조 | F157: 300,000원*2대*60% | H157: 600 | I157: 360 | J157: 240 | K157: 360 | L157: 360 | M157: 360
A158: 산림축산과 | B158: 용문면 선동길 449 | C158: 김진원 | D158: 축사 환기시설 지원사업 | E158: 민간자본사업보조 | F158: 300,000원*1대*60% | H158: 300 | I158: 180 | J158: 120 | K158: 180 | L158: 180 | M158: 180
A159: 산림축산과 | B159: 용문면 두천길 27-1 | C159: 손병규 | D159: 축사 환기시설 지원사업 | E159: 민간자본사업보조 | F159: 300,000원*1대*60% | H159: 300 | I159: 180 | J159: 120 | K159: 180 | L159: 180 | M159: 180
A160: 산림축산과 | B160: 용문면 구계길 46 | C160: 신철호 | D160: 축사 환기시설 지원사업 | E160: 민간자본사업보조 | F160: 300,000원*1대*60% | H160: 300 | I160: 180 | J160: 120 | K160: 180 | L160: 180 | M160: 180
A161: 산림축산과 | B161: 용문면 사부령길 357 | C161: 이수의 | D161: 축사 환기시설 지원사업 | E161: 민간자본사업보조 | F161: 300,000원*1대*60% | H161: 300 | I161: 180 | J161: 120 | K161: 180 | L161: 180 | M161: 180
A162: 산림축산과 | B162: 용문면 성현길 148 | C162: 장연이 | D162: 축사 환기시설 지원사업 | E162: 민간자본사업보조 | F162: 300,000원*1대*60% | H162: 300 | I162: 180 | J162: 120 | K162: 180 | L162: 180 | M162: 180
A163: 산림축산과 | B163: 용문면 사부령길 260-4 | C163: 황철호 | D163: 축사 환기시설 지원사업 | E163: 민간자본사업보조 | F163: 300,000원*1대*60% | H163: 300 | I163: 180 | J163: 120 | K163: 180 | L163: 180 | M163: 180
A164: 산림축산과 | B164: 효자면 텃골길 106 | C164: 강구정 | D164: 축사 환기시설 지원사업 | E164: 민간자본사업보조 | F164: 300,000원*1대*60% | H164: 300 | I164: 180 | J164: 120 | K164: 180 | L164: 180 | M164: 180
A165: 산림축산과 | B165: 효자면 도촌길 59 | C165: 강영구 | D165: 축사 환기시설 지원사업 | E165: 민간자본사업보조 | F165: 300,000원*1대*60% | H165: 300 | I165: 180 | J165: 120 | K165: 180 | L165: 180 | M165: 180
A166: 산림축산과 | B166: 효자면 백석길 78-1 | C166: 황보성 | D166: 축사 환기시설 지원사업 | E166: 민간자본사업보조 | F166: 300,000원*1대*60% | H166: 300 | I166: 180 | J166: 120 | K166: 180 | L166: 180 | M166: 180
A167: 산림축산과 | B167: 은풍면 부용봉길 441 | C167: 김경한 | D167: 축사 환기시설 지원사업 | E167: 민간자본사업보조 | F167: 300,000원*1대*60% | H167: 300 | I167: 180 | J167: 120 | K167: 180 | L167: 180 | M167: 180
A168: 산림축산과 | B168: 은풍면 오류길 47-6 | C168: 박한우 | D168: 축사 환기시설 지원사업 | E168: 민간자본사업보조 | F168: 300,000원*1대*60% | H168: 300 | I168: 180 | J168: 120 | K168: 180 | L168: 180 | M168: 180
A169: 산림축산과 | B169: 은풍면 율곡1길 161 | C169: 윤경수 | D169: 축사 환기시설 지원사업 | E169: 민간자본사업보조 | F169: 300,000원*1대*60% | H169: 300 | I169: 180 | J169: 120 | K169: 180 | L169: 180 | M169: 180
A170: 산림축산과 | B170: 은풍면 율곡1길 142 | C170: 윤호영 | D170: 축사 환기시설 지원사업 | E170: 민간자본사업보조 | F170: 300,000원*2대*60% | H170: 600 | I170: 360 | J170: 240 | K170: 360 | L170: 360 | M170: 360
A171: 산림축산과 | B171: 감천면 수한길 141-108 | C171: 구성모 | D171: 축사 환기시설 지원사업 | E171: 민간자본사업보조 | F171: 300,000원*1대*60% | H171: 300 | I171: 180 | J171: 120 | K171: 180 | L171: 180 | M171: 180
A172: 산림축산과 | B172: 감천면 충효로 1402 | C172: 권기환 | D172: 축사 환기시설 지원사업 | E172: 민간자본사업보조 | F172: 300,000원*1대*60% | H172: 300 | I172: 180 | J172: 120 | K172: 180 | L172: 180 | M172: 180
A173: 산림축산과 | B173: 감천면 충효로 1381-7 | C173: 김분순 | D173: 축사 환기시설 지원사업 | E173: 민간자본사업보조 | F173: 300,000원*1대*60% | H173: 300 | I173: 180 | J173: 120 | K173: 180 | L173: 180 | M173: 180
A174: 산림축산과 | B174: 감천면 유동길 169-37 | C174: 김서필 | D174: 축사 환기시설 지원사업 | E174: 민간자본사업보조 | F174: 300,000원*1대*60% | H174: 300 | I174: 180 | J174: 120 | K174: 180 | L174: 180 | M174: 180
A175: 산림축산과 | B175: 감천면 수한길 141-117 | C175: 김영민 | D175: 축사 환기시설 지원사업 | E175: 민간자본사업보조 | F175: 300,000원*1대*60% | H175: 300 | I175: 180 | J175: 120 | K175: 180 | L175: 180 | M175: 180
A176: 산림축산과 | B176: 감천면 수용골길 214-12 | C176: 박춘우 | D176: 축사 환기시설 지원사업 | E176: 민간자본사업보조 | F176: 300,000원*1대*60% | H176: 300 | I176: 180 | J176: 120 | K176: 180 | L176: 180 | M176: 180
A177: 산림축산과 | B177: 감천면 오향길 77 | C177: 유승열 | D177: 축사 환기시설 지원사업 | E177: 민간자본사업보조 | F177: 300,000원*1대*60% | H177: 300 | I177: 180 | J177: 120 | K177: 180 | L177: 180 | M177: 180
A178: 산림축산과 | B178: 감천면 덕율4길 56-4 | C178: 장복현 | D178: 축사 환기시설 지원사업 | E178: 민간자본사업보조 | F178: 300,000원*1대*60% | H178: 300 | I178: 180 | J178: 120 | K178: 180 | L178: 180 | M178: 180
A179: 산림축산과 | B179: 감천면 충효로 1408-1 | C179: 정대섭 | D179: 축사 환기시설 지원사업 | E179: 민간자본사업보조 | F179: 300,000원*1대*60% | H179: 300 | I179: 180 | J179: 120 | K179: 180 | L179: 180 | M179: 180
A180: 산림축산과 | B180: 보문면 무근열길 30-5 | C180: 김규정 | D180: 축사 환기시설 지원사업 | E180: 민간자본사업보조 | F180: 300,000원*1대*60% | H180: 300 | I180: 180 | J180: 120 | K180: 180 | L180: 180 | M180: 180
A181: 산림축산과 | B181: 보문면 미호길 129 | C181: 김종화 | D181: 축사 환기시설 지원사업 | E181: 민간자본사업보조 | F181: 300,000원*1대*60% | H181: 300 | I181: 180 | J181: 120 | K181: 180 | L181: 180 | M181: 180
A182: 산림축산과 | B182: 보문면 장수골길 18 | C182: 안희대 | D182: 축사 환기시설 지원사업 | E182: 민간자본사업보조 | F182: 300,000원*2대*60% | H182: 600 | I182: 360 | J182: 240 | K182: 360 | L182: 360 | M182: 360
A183: 산림축산과 | B183: 보문면 동막미륵길 125-11 | C183: 임경수 | D183: 축사 환기시설 지원사업 | E183: 민간자본사업보조 | F183: 300,000원*1대*60% | H183: 300 | I183: 180 | J183: 120 | K183: 180 | L183: 180 | M183: 180
A184: 산림축산과 | B184: 호명면 송림길 20 | C184: 금영숙 | D184: 축사 환기시설 지원사업 | E184: 민간자본사업보조 | F184: 300,000원*2대*60% | H184: 600 | I184: 360 | J184: 240 | K184: 360 | L184: 360 | M184: 360
A185: 산림축산과 | B185: 호명면 팔미길 64 | C185: 김한기 | D185: 축사 환기시설 지원사업 | E185: 민간자본사업보조 | F185: 300,000원*2대*60% | H185: 600 | I185: 360 | J185: 240 | K185: 360 | L185: 360 | M185: 360
A186: 산림축산과 | B186: 호명면 풍산태사로 114 | C186: 박미영 | D186: 축사 환기시설 지원사업 | E186: 민간자본사업보조 | F186: 300,000원*2대*60% | H186: =SUM(I186:J186) -> 600 | I186: 360 | J186: 240 | K186: =I186 -> 360 | L186: =K186 -> 360 | M186: =L186 -> 360
A187: 산림축산과 | B187: 유천면 화지2길 21-4 | C187: 윤경상 | D187: 축사 환기시설 지원사업 | E187: 민간자본사업보조 | F187: 300,000원*2대*60% | H187: 600 | I187: 360 | J187: 240 | K187: 360 | L187: 360 | M187: 360
A188: 산림축산과 | B188: 유천면 예성로 679 | C188: 정휘락 | D188: 축사 환기시설 지원사업 | E188: 민간자본사업보조 | F188: 300,000원*1대*60% | H188: 300 | I188: 180 | J188: 120 | K188: 180 | L188: 180 | M188: 180
A189: 산림축산과 | B189: 유천면 유용로 507-32 | C189: 최재환 | D189: 축사 환기시설 지원사업 | E189: 민간자본사업보조 | F189: 300,000원*2대*60% | H189: 600 | I189: 360 | J189: 240 | K189: 360 | L189: 360 | M189: 360
A190: 산림축산과 | B190: 유천면 광전2길 49 | C190: 황덕분 | D190: 축사 환기시설 지원사업 | E190: 민간자본사업보조 | F190: 300,000원*2대*60% | H190: 600 | I190: 360 | J190: 240 | K190: 360 | L190: 360 | M190: 360
A191: 산림축산과 | B191: 용궁면 대은길 67-14 | C191: 권혁수 | D191: 축사 환기시설 지원사업 | E191: 민간자본사업보조 | F191: 300,000원*1대*60% | H191: 300 | I191: 180 | J191: 120 | K191: 180 | L191: 180 | M191: 180
A192: 산림축산과 | B192: 용궁면 왕의산로 202-42 | C192: 엄경흠 | D192: 축사 환기시설 지원사업 | E192: 민간자본사업보조 | F192: 300,000원*1대*60% | H192: 300 | I192: 180 | J192: 120 | K192: 180 | L192: 180 | M192: 180
A193: 산림축산과 | B193: 용궁면 원당길 9 | C193: 엄기옥 | D193: 축사 환기시설 지원사업 | E193: 민간자본사업보조 | F193: 300,000원*1대*60% | H193: 300 | I193: 180 | J193: 120 | K193: 180 | L193: 180 | M193: 180
A194: 산림축산과 | B194: 용궁면 용궁시장길 40-1 | C194: 윤용한 | D194: 축사 환기시설 지원사업 | E194: 민간자본사업보조 | F194: 300,000원*1대*60% | H194: 300 | I194: 180 | J194: 120 | K194: 180 | L194: 180 | M194: 180
A195: 산림축산과 | B195: 용궁면 금남길 8-30 | C195: 장영수 | D195: 축사 환기시설 지원사업 | E195: 민간자본사업보조 | F195: 300,000원*1대*60% | H195: 300 | I195: 180 | J195: 120 | K195: 180 | L195: 180 | M195: 180
A196: 산림축산과 | B196: 용궁면 용궁시장길 46 | C196: 최후봉 | D196: 축사 환기시설 지원사업 | E196: 민간자본사업보조 | F196: 300,000원*1대*60% | H196: 300 | I196: 180 | J196: 120 | K196: 180 | L196: 180 | M196: 180
A197: 산림축산과 | B197: 개포면 동소리길 202-167 | C197: 변우성 | D197: 축사 환기시설 지원사업 | E197: 민간자본사업보조 | F197: 300,000원*1대*60% | H197: 300 | I197: 180 | J197: 120 | K197: 180 | L197: 180 | M197: 180
A198: 산림축산과 | B198: 개포면 군청길 13-3 | C198: 윤정욱 | D198: 축사 환기시설 지원사업 | E198: 민간자본사업보조 | F198: 300,000원*1대*60% | H198: 300 | I198: 180 | J198: 120 | K198: 180 | L198: 180 | M198: 180
A199: 산림축산과 | B199: 개포면 동소리길 190 | C199: 이상문 | D199: 축사 환기시설 지원사업 | E199: 민간자본사업보조 | F199: 300,000원*2대*60% | H199: 600 | I199: 360 | J199: 240 | K199: 360 | L199: 360 | M199: 360
A200: 산림축산과 | B200: 개포면 예지로 1189-14 | C200: 정재호 | D200: 축사 환기시설 지원사업 | E200: 민간자본사업보조 | F200: 300,000원*1대*60% | H200: 300 | I200: 180 | J200: 120 | K200: 180 | L200: 180 | M200: 180
... 747 more rows
